lending/lending_fUSD_20260312
["ID","MTS","AMOUNT","RATE_DAILY","PERIOD"]
[408258507,1773329432308,-213.0,0.00015616,2]
[408258508,1773329432317,-5018.32,0.00015651,2]
[408258509,1773329432327,-1200.0,0.00015704,2]
[408258510,1773329432337,-1500.0,0.00015705,2]
[408258511,1773329432347,-256.84,0.00015785,2]
[408258512,1773329432357,-166.67,0.00015821,2]
[408258513,1773329432367,-166.66,0.00015871,2]
[408258514,1773329432376,-300.0,0.00015889,2]
[408258515,1773329432386,-300.0,0.00015889,2]
[408258516,1773329432395,-2000.0,0.0001589,2]
[408258517,1773329432405,-250.0,0.0001595,2]
[408258518,1773329432419,-6166.67,0.00016017,2]
[408258519,1773329432429,-1686.75,0.00016028,2]
[408258520,1773329432438,-2000.0,0.00016105,2]
[408258521,1773329432448,-600.0,0.0001617,2]
[408258524,1773329432458,-166.66,0.00016205,2]
[408258526,1773329432467,-6347.0,0.00016395,2]
[408258527,1773329432476,-1587.67,0.00016491,2]
[408258528,1773329432486,-892.86053309,0.00016499,2]
[408258529,1773329432495,-9999.99,0.000165,2]
[408258530,1773329432505,-150.99,0.00016516,2]
[408258531,1773329432514,-1600.0,0.00016517,2]
[408258532,1773329432523,-550.0,0.00016517,2]
[408258533,1773329432533,-166.66,0.0001654,2]
[408258534,1773329432543,-500.0,0.0001663,2]
[408258535,1773329432553,-256.84,0.00016662,2]
[408258536,1773329432562,-166.67,0.00016691,2]
[408258537,1773329432572,-166.66,0.00016874,2]
[408258538,1773329432582,-1587.67,0.00016903,2]
[408258539,1773329432591,-2694.0,0.00017,2]
[408258540,1773329432601,-300.0,0.00017,2]
[408258541,1773329432610,-507.0,0.00017,2]
[408258542,1773329432623,-507.0,0.00017,2]
[408258543,1773329432632,-507.0,0.00017,2]
[408258544,1773329432641,-3157.43,0.00017064,2]
[408258545,1773329432650,-177.916,0.00017064,2]
[408258546,1773329432660,-8428.31237685,0.00017098,2]
[408258547,1773329432673,-827.83286714,0.00017098,2]
[408258548,1773329432682,-500.0,0.00017173,2]
[408258549,1773329432692,-500.0,0.00017173,2]
[408258550,1773329432701,-500.0,0.00017173,2]
[408258551,1773329432710,-500.0,0.00017173,2]
[408258552,1773329432719,-500.0,0.00017173,2]
[408258553,1773329432728,-503.02080856,0.00017173,2]
[408258554,1773329432737,-500.42269265,0.00017173,2]
[408258555,1773329432746,-172.5787227,0.00017198,2]
[408258556,1773329432756,-11926.49248616,0.00017198,2]
[408258560,1773329438320,-12831.63316,0.00017198,2]
[408258589,1773329440599,-287.108,0.00017198,2]
[408258590,1773329440617,-2143.45253589,0.00017198,2]
[408258591,1773329440627,-89337.26611384,0.00017198,2]
[408258592,1773329440636,-32942.6924,0.00017198,2]
[408258593,1773329440645,-1000.0,0.00017198,2]
[408258594,1773329440654,-5000.0,0.00017198,2]
[408258595,1773329440664,-2500.0,0.00017198,2]
[408258596,1773329440677,-500.0,0.00017198,2]
[408258597,1773329440694,-166.66,0.00017208,2]
[408258598,1773329440709,-2954.42978653,0.0001724,2]
[408258599,1773329440722,-500.0,0.0001726,2]
[408258600,1773329440737,-1680.0,0.00017261,2]
[408258601,1773329440751,-500.0,0.00017273,2]
[408258602,1773329440765,-500.0,0.00017273,2]
[408258603,1773329440779,-500.0,0.00017273,2]
[408258604,1773329440791,-443.65211453,0.00017288,2]
[408258605,1773329440806,-151.0,0.00017295,2]
[408258606,1773329440817,-500.0,0.00017296,2]
[408258607,1773329440832,-500.0,0.00017296,2]
[408258608,1773329440845,-401.98343023,0.00017296,2]
[408258609,1773329440858,-500.0,0.00017297,2]
[408258610,1773329440873,-185.16023909,0.00017297,2]
[408258611,1773329440887,-282.53285293,0.00017297,2]
[408258612,1773329440901,-478.91031989,0.00017297,2]
[408258613,1773329440914,-300.0,0.00017297,2]
[408258614,1773329440927,-300.0,0.00017297,2]
[408258615,1773329440941,-500.0,0.00017298,2]
[408258616,1773329440954,-500.0,0.00017298,3]
[408258617,1773329440967,-500.0,0.00017298,4]
[408258618,1773329440981,-500.0,0.00017298,5]
[408258619,1773329440993,-500.0,0.00017298,6]
[408258620,1773329441009,-500.0,0.00017298,7]
[408258621,1773329441020,-500.0,0.00017298,8]
[408258623,1773329441033,-500.0,0.00017298,9]
[408258624,1773329441051,-500.0,0.00017298,10]
[408258625,1773329441061,-500.0,0.00017298,11]
[408258626,1773329441075,-500.0,0.00017298,12]
[408258627,1773329441089,-2500000.0,0.00017298,2]
[408258628,1773329441103,-4998.48,0.00017298,2]
[408258629,1773329441116,-500.0,0.00017311,2]
[408258630,1773329441128,-196.5259752,0.00017311,2]
[408258631,1773329441139,-443.75453568,0.00017312,2]
[408258632,1773329441152,-150.0,0.00017312,2]
[408258633,1773329441164,-150.0,0.00017312,2]
[408258634,1773329441176,-150.0,0.00017312,2]
[408258635,1773329441188,-487.86945979,0.00017312,2]
[408258636,1773329441199,-1208.77957433,0.00017312,2]
[408258637,1773329441211,-1483.42040625,0.00017312,2]
[408258638,1773329441223,-938.08263821,0.00017312,2]
[408258639,1773329441235,-357.12320034,0.00017312,2]
[408258640,1773329441247,-1587.67,0.00017315,2]
[408258641,1773329441259,-420.0,0.00017374,2]
[408258642,1773329441271,-420.0,0.00017374,2]
[408258643,1773329441283,-9256.14524393,0.00017409,2]
[408258644,1773329441296,-500.0,0.00017411,2]
[408258645,1773329441307,-525.9,0.00017411,2]
[408258646,1773329441319,-500.0,0.00017411,2]
[408258647,1773329441330,-500.0,0.00017411,2]
[408258648,1773329441343,-300.0,0.00017411,2]
[408258649,1773329441355,-500.0,0.00017411,2]
[408258650,1773329441367,-500.0,0.00017411,2]
[408258651,1773329441380,-500.0,0.00017411,2]
[408258652,1773329441392,-500.0,0.00017411,2]
[408258653,1773329441404,-500.0,0.00017411,2]
[408258654,1773329441416,-500.0,0.00017411,2]
[408258655,1773329441427,-500.0,0.00017411,2]
[408258656,1773329441440,-500.0,0.00017411,2]
[408258657,1773329441452,-500.0,0.00017411,2]
[408258658,1773329441464,-500.0,0.00017411,2]
[408258659,1773329441475,-500.0,0.00017411,2]
[408258660,1773329441487,-484.25426362,0.00017411,2]
[408258661,1773329441499,-500.0,0.00017411,2]
[408258662,1773329441510,-500.0,0.00017411,2]
[408258663,1773329441522,-500.0,0.00017411,2]
[408258664,1773329441535,-500.0,0.00017411,2]
[408258665,1773329441546,-500.0,0.00017411,2]
[408258666,1773329441558,-500.0,0.00017411,2]
[408258667,1773329441570,-500.0,0.00017411,2]
[408258668,1773329441582,-80081.0625869,0.00017412,2]
[408258669,1773329441594,-5959.732856,0.00017412,2]
[408258670,1773329441605,-500.0,0.00017412,2]
[408258671,1773329441617,-187990.43911683,0.00017412,2]
[408258672,1773329441659,-16654.77900002,0.00017412,2]
[408258673,1773329441674,-1413.47813135,0.00017412,2]
[408258691,1773329443276,-278.05,0.00017412,2]
[408258692,1773329443290,-1013.90818095,0.00017412,2]
[408258693,1773329443304,-511.75978051,0.00017412,2]
[408258694,1773329443319,-20698.54030211,0.00017412,2]
[408258695,1773329443333,-1997.64804526,0.00017412,2]
[408258696,1773329443371,-37320.08405697,0.00017412,2]
[408258697,1773329443383,-14709.1103345,0.00017412,2]
[408258698,1773329443396,-200.0,0.00017412,2]
[408258699,1773329443409,-608.00046403,0.00017472,2]
[408258700,1773329443422,-500.0,0.00017473,2]
[408258701,1773329443435,-15262.19369583,0.00017498,2]
[408258702,1773329443449,-813.18,0.00017512,2]
[408258703,1773329443460,-256.84,0.00017539,2]
[408258704,1773329443469,-166.66,0.00017542,2]
[408258705,1773329443479,-166.67,0.00017562,2]
[408258706,1773329443489,-3299.8,0.00017584,2]
[408258708,1773329443703,-1059.08,0.00017609,2]
[408258709,1773329443760,-935.0,0.00017624,2]
[408258710,1773329443773,-9256.14524393,0.00017721,2]
[408258711,1773329443783,-1587.67,0.00017728,2]
[408258712,1773329443793,-172.57872266,0.00017738,2]
[408258713,1773329443802,-150.0,0.00017753,2]
[408258715,1773329443812,-150.0,0.00017753,2]
[408258717,1773329443821,-150.0,0.00017753,2]
[408258719,1773329443831,-150.0,0.00017753,2]
[408258720,1773329443840,-150.0,0.00017753,2]
[408258721,1773329443849,-150.0,0.00017753,2]
[408258722,1773329443858,-150.0,0.00017753,2]
[408258723,1773329443867,-150.0,0.00017753,2]
[408258724,1773329443876,-150.0,0.00017753,2]
[408258725,1773329443886,-500.0,0.00017753,2]
[408258726,1773329443895,-150.0,0.00017753,2]
[408258727,1773329443905,-500.0,0.00017753,2]
[408258728,1773329443914,-150.0,0.00017808,2]
[408258729,1773329443923,-150.0,0.00017808,2]
[408258730,1773329443932,-150.0,0.00017808,2]
[408258731,1773329443941,-150.0,0.00017808,2]
[408258732,1773329443950,-150.0,0.00017808,2]
[408258733,1773329443959,-150.0,0.00017808,2]
[408258734,1773329443968,-150.0,0.00017808,2]
[408258735,1773329443977,-150.0,0.00017808,2]
[408258736,1773329443986,-500.0,0.00017808,2]
[408258737,1773329443996,-150.0,0.00017808,2]
[408258738,1773329444007,-500.0,0.00017808,2]
[408258739,1773329444016,-1000.0,0.00017821,2]
[408258740,1773329444025,-150.0,0.00017863,2]
[408258741,1773329444035,-200.0,0.00017863,2]
[408258742,1773329444045,-150.0,0.00017863,2]
[408258743,1773329444054,-200.0,0.00017863,2]
[408258744,1773329444063,-200.0,0.00017863,2]
[408258745,1773329444075,-200.0,0.00017863,2]
[408258746,1773329444084,-200.0,0.00017863,2]
[408258747,1773329444093,-200.0,0.00017863,2]
[408258748,1773329444102,-500.0,0.00017863,2]
[408258749,1773329444112,-150.0,0.00017863,2]
[408258750,1773329444121,-500.0,0.00017863,2]
[408258751,1773329444130,-500.0,0.00017886,2]
[408258752,1773329444140,-500.0,0.00017886,2]
[408258753,1773329444150,-2998.5066432,0.00017896,2]
[408258754,1773329444159,-150.0,0.00017917,2]
[408258755,1773329444169,-150.0,0.00017917,2]
[408258756,1773329444179,-500.0,0.00017917,2]
[408258757,1773329444189,-205.57005763,0.00017917,2]
[408258758,1773329444199,-596.68097798,0.00017917,2]
[408258759,1773329444207,-150.0,0.00017972,2]
[408258760,1773329444216,-298.99053488,0.00017972,2]
[408258761,1773329444226,-484.0,0.00017972,2]
[408258762,1773329444235,-300.0,0.00017989,2]
[408258763,1773329444244,-20000.0,0.0001799,2]
[408258764,1773329444253,-151.0,0.00017997,2]
[408258765,1773329444262,-9734.96444497,0.00018,5]
[408258766,1773329444272,-8554.70109591,0.00018,2]
[408258767,1773329444281,-1198.05149751,0.00018,2]
[408258768,1773329444290,-500.2058558,0.00018,2]
[408258769,1773329444301,-250.0,0.00018027,2]
[408258770,1773329444310,-813.18,0.00018027,2]
[408258771,1773329444320,-9256.14524393,0.00018032,2]
[408258772,1773329444330,-651.95,0.00018052,2]
[408258773,1773329444339,-500.0,0.00018057,2]
[408258774,1773329444349,-1787.9883388,0.000181,2]
[408258775,1773329444358,-2000.0,0.00018119,2]
[408258776,1773329444367,-1587.67,0.0001814,2]
[408258777,1773329444377,-500.0,0.00018209,13]
[408258778,1773329444387,-3727.57451709,0.0001821,2]
[408258779,1773329444397,-500.0,0.00018219,2]
[408258780,1773329444408,-172.57872266,0.00018279,2]
[408258781,1773329444418,-250.0,0.00018332,2]
[408258782,1773329444432,-9256.14524393,0.00018343,2]
[408258783,1773329444443,-1000.0,0.00018368,2]
[408258784,1773329444452,-256.84,0.00018416,2]
[408258785,1773329444461,-166.67,0.00018432,2]
[408258786,1773329444471,-500.0,0.00018438,2]
[408258787,1773329444480,-151.0,0.000185,5]
[408258788,1773329444489,-813.18,0.00018542,2]
[408258789,1773329444498,-1600.0,0.00018582,2]
[408258790,1773329444509,-9256.14524393,0.00018655,2]
[408258791,1773329444518,-191.1025035,0.00018769,2]
[408258792,1773329444527,-1589.0,0.00018796,2]
[408258793,1773329444536,-172.57872266,0.00018819,2]
[408258794,1773329444546,-500.0,0.00018932,2]
[408258795,1773329444555,-448.26,0.00018956,2]
[408258796,1773329444564,-9256.14524393,0.00018966,2]
[408258797,1773329444573,-2351.0,0.00018973,2]
[408258798,1773329444583,-587.0,0.00018998,2]
[408258799,1773329444592,-14070.89965809,0.00019,2]
[408258800,1773329444601,-350.0,0.00019,2]
[408258801,1773329444611,-813.18,0.00019057,2]
[408258802,1773329444621,-300.0,0.000191,2]
[408258803,1773329444631,-448.26,0.00019109,2]
[408258804,1773329444641,-500.0,0.00019178,2]
[408258805,1773329444651,-3110.0,0.00019188,2]
[408258806,1773329444660,-2000.0,0.000192,2]
[408258807,1773329444670,-10000.0,0.000192,2]
[408258808,1773329444683,-448.26,0.00019257,2]
[408258809,1773329444692,-9256.14524393,0.00019277,2]
[408258810,1773329444701,-256.84,0.00019293,2]
[408258811,1773329444710,-151.0,0.00019297,2]
[408258812,1773329444720,-300.0,0.00019299,2]
[408258813,1773329444729,-529.61791857,0.00019299,2]
[408258814,1773329444739,-500.0,0.00019299,14]
[408258815,1773329444749,-532.22936309,0.00019299,2]
[408258816,1773329444758,-110478.73040938,0.000193,2]
[408258817,1773329445020,-524.0,0.000193,2]
[408258819,1773329446054,-532.72936716,0.00017798,2]
[408258820,1773329446077,-1103.2,0.00017798,2]
[408258821,1773329446098,-10349.27104002,0.00017798,2]
[408258822,1773329446109,-1000.0,0.00017798,2]
[408258823,1773329446121,-2276.99328865,0.00017798,2]
[408258824,1773329446130,-127796.46513581,0.000193,2]
[408258825,1773329446290,-197.23311885,0.00017312,2]
[408258826,1773329446301,-29210.258237,0.000193,2]
[408258827,1773329446311,-151.0,0.000193,2]
[408258828,1773329446320,-151.0,0.000193,2]
[408258829,1773329446330,-151.0,0.000193,2]
[408258830,1773329446339,-172.57872266,0.0001936,2]
[408258831,1773329446348,-448.26,0.00019379,2]
[408258832,1773329446358,-500.5198783,0.00019458,2]
[408258833,1773329446367,-500.0,0.00019479,2]
[408258834,1773329446377,-160.80967078,0.000195,5]
[408258835,1773329446386,-448.26,0.00019527,2]
[408258836,1773329446395,-3219.2734373,0.00019535,5]
[408258837,1773329446404,-813.18,0.00019572,2]
[408258838,1773329446414,-9256.14524393,0.00019589,2]
[408258839,1773329446424,-200.0,0.00019602,14]
[408258840,1773329446433,-200.0,0.00019602,14]
[408258841,1773329446442,-200.0,0.00019602,14]
[408258842,1773329446451,-200.0,0.00019602,14]
[408258843,1773329446461,-293.0,0.00019602,14]
[408258844,1773329446470,-175.43,0.00019608,2]
[408258845,1773329446480,-443.65211453,0.00019621,2]
[408258846,1773329446489,-17868.5003198,0.00019631,2]
[408258847,1773329446498,-59771.8142445,0.00019631,2]
[408258848,1773329446507,-448.26,0.00019633,2]
[408258849,1773329446517,-1329.7961466,0.00019708,2]
[408258850,1773329446526,-3282.0461445,0.00019708,2]
[408258851,1773329446535,-260.0,0.00019764,2]
[408258852,1773329446550,-168.0,0.00019788,2]
[408258853,1773329446560,-150.0,0.000198,30]
[408258854,1773329446569,-289.66,0.00019807,2]
[408258855,1773329446579,-168.0,0.00019849,2]
[408258857,1773329446588,-1554.65,0.00019865,2]
[408258858,1773329446598,-250.0,0.0001989,2]
[408258859,1773329446607,-9256.14524393,0.000199,2]
[408258860,1773329446617,-172.57872266,0.000199,2]
[408258861,1773329446626,-270.35,0.00019969,2]
[408258862,1773329446636,-1356.29105231,0.0001997,2]
[408258863,1773329446645,-443.65211453,0.0001999,2]
[408258864,1773329446654,-151.0,0.00019997,2]
[408258865,1773329446663,-500.0,0.00019999,15]
[408258866,1773329446672,-500.0,0.00019999,16]
[408258867,1773329446683,-500.0,0.00019999,17]
[408258868,1773329446692,-500.0,0.00019999,18]
[408258869,1773329446702,-500.0,0.00019999,19]
[408258870,1773329446711,-470.81444741,0.00019999,20]
[408258871,1773329446721,-252.9436608,0.00019999,2]
[408258872,1773329446730,-165.1294434,0.0002,2]
[408258873,1773329446739,-3822.822968,0.0002,2]
[408258874,1773329446748,-2000.0,0.0002,2]
[408258875,1773329446758,-2714568.33504816,0.0002,2]
[408258876,1773329446768,-1540.85433812,0.0002,2]
[408258877,1773329446778,-177.37815239,0.0002,2]
[408258878,1773329446789,-4738.06557045,0.0002,2]
[408258879,1773329446798,-2464.68,0.0002,2]
[408258880,1773329446807,-264323.70562224,0.0002,2]
[408258881,1773329446817,-1300.82312217,0.0002,2]
[408258882,1773329446826,-30115.54751795,0.0002,7]
[408258883,1773329446835,-1050.09646487,0.0002,2]
[408258884,1773329446844,-152.0,0.0002,2]
[408258885,1773329446853,-1005.10564484,0.0002,2]
[408258886,1773329446862,-151.0,0.0002,2]
[408258887,1773329446871,-151.0,0.0002,2]
[408258888,1773329446880,-151.0,0.0002,2]
[408258889,1773329446889,-316.850194,0.0002,2]
[408258890,1773329446899,-316.850194,0.0002,2]
[408258891,1773329446907,-316.850194,0.0002,2]
[408258892,1773329446917,-316.850194,0.0002,2]
[408258893,1773329446927,-151.0,0.0002,2]
[408258894,1773329446937,-154.561058,0.0002,2]
[408258895,1773329446946,-154.561058,0.0002,2]
[408258896,1773329446956,-154.561058,0.0002,2]
[408258897,1773329446965,-154.561058,0.0002,2]
[408258898,1773329446974,-151.0,0.0002,2]
[408258899,1773329446983,-151.0,0.0002,2]
[408258900,1773329446992,-154.242032,0.0002,2]
[408258901,1773329447006,-172.827738,0.0002,2]
[408258902,1773329447015,-172.827738,0.0002,2]
[408258903,1773329447024,-172.827738,0.0002,2]
[408258904,1773329447034,-172.827738,0.0002,2]
[408258905,1773329447045,-151.0,0.0002,2]
[408258906,1773329447055,-151.0,0.0002,2]
[408258907,1773329447064,-194.179278,0.0002,2]
[408258908,1773329447076,-194.179278,0.0002,2]
[408258909,1773329447086,-194.179278,0.0002,2]
[408258910,1773329447095,-194.179278,0.0002,2]
[408258911,1773329447104,-151.0,0.0002,2]
[408258912,1773329447114,-151.0,0.0002,2]
[408258913,1773329447123,-265.244161,0.0002,2]
[408258914,1773329447133,-265.244161,0.0002,2]
[408258915,1773329447143,-265.244161,0.0002,2]
[408258916,1773329447152,-265.244161,0.0002,2]
[408258917,1773329447161,-151.0,0.0002,2]
[408258918,1773329447170,-151.0,0.0002,2]
[408258919,1773329447181,-151.0,0.0002,2]
[408258920,1773329447191,-1796.11,0.0002,7]
[408258921,1773329447200,-151.0,0.0002,2]
[408258922,1773329447209,-183.836779,0.0002,2]
[408258923,1773329447219,-2000.0,0.0002001,2]
[408258924,1773329447227,-2000.0,0.0002002,2]
[408258925,1773329447236,-2737.628529,0.0002003,2]
[408258926,1773329447246,-213.0,0.00020068,2]
[408258927,1773329447255,-168.0,0.00020105,2]
[408258928,1773329447264,-3987.0013379,0.00020126,2]
[408258929,1773329447273,-13336.8944847,0.00020126,2]
[408258930,1773329447281,-2000.0,0.00020132,2]
[408258931,1773329447290,-260.0,0.00020157,2]
[408258932,1773329447299,-256.84,0.0002017,2]
[408258933,1773329447307,-9638.34,0.00020185,2]
[408258934,1773329447316,-260.0,0.00020192,2]
[408258935,1773329447325,-296.7176271,0.0002022,2]
[408258936,1773329447334,-732.3234818,0.0002022,2]
[408258937,1773329447343,-250.0,0.00020233,2]
[408258938,1773329447352,-153.56106976,0.00020248,2]
[408258939,1773329447360,-150.33348315,0.00020276,2]
[408258940,1773329447369,-260.0,0.00020305,2]
[408258941,1773329447378,-150.0,0.0002031,2]
[408258942,1773329447387,-252.392799,0.00020312,2]
[408258943,1773329447396,-151.0,0.00020376,2]
[408258944,1773329447405,-151.0,0.00020376,2]
[408258945,1773329447415,-260.0,0.00020397,2]
[408258946,1773329447424,-577.0,0.00020429,2]
[408258947,1773329447433,-577.0,0.00020459,2]
[408258948,1773329447444,-507.0,0.000205,5]
[408258949,1773329447453,-9000.0,0.00020529,2]
[408258950,1773329447462,-8565.75555911,0.00020529,2]
[408258951,1773329447594,-646.65982735,0.00020529,2]
[408258952,1773329447635,-756.38801651,0.00020529,2]
[408258953,1773329447644,-250.0,0.00020529,2]
[408258954,1773329447653,-500.0,0.00020529,2]
[408258955,1773329447663,-500.0,0.00020529,2]
[408258956,1773329447672,-500.0,0.00020529,2]
[408258957,1773329447682,-172.5970277,0.00020529,2]
[408258958,1773329447691,-500.0,0.00020529,2]
[408258959,1773329447701,-1500.0,0.00020529,2]
[408258960,1773329447710,-250.0,0.00020529,2]
[408258961,1773329447719,-500.0,0.00020529,2]
[408258962,1773329447729,-500.0,0.00020529,2]
[408258963,1773329447738,-500.0,0.00020529,2]
[408258964,1773329447747,-500.0,0.00020529,2]
[408258965,1773329447756,-500.0,0.00020529,2]
[408258966,1773329447766,-250.0,0.00020529,2]
[408258967,1773329447775,-500.0,0.00020529,2]
[408258968,1773329447785,-250.0,0.00020529,2]
[408258969,1773329447794,-500.0,0.00020529,2]
[408258970,1773329447803,-250.0,0.00020529,2]
[408258971,1773329447814,-500.0,0.00020529,2]
[408258972,1773329447823,-250.0,0.00020529,2]
[408258973,1773329447833,-500.0,0.00020529,2]
[408258974,1773329447842,-250.0,0.00020529,2]
[408258975,1773329447851,-500.0,0.00020529,2]
[408258976,1773329447861,-250.0,0.00020529,2]
[408258977,1773329447872,-500.0,0.00020529,2]
[408258978,1773329447883,-250.0,0.00020529,2]
[408258979,1773329447893,-500.0,0.00020529,2]
[408258980,1773329447903,-250.0,0.00020529,2]
[408258981,1773329447912,-500.0,0.00020529,2]
[408258982,1773329447922,-151.0,0.00020529,2]
[408258983,1773329447932,-250.0,0.00020529,2]
[408258984,1773329447942,-500.0,0.00020529,2]
[408258985,1773329447951,-250.0,0.00020529,2]
[408258986,1773329447960,-200.0,0.00020529,2]
[408258987,1773329447969,-250.0,0.00020529,2]
[408258988,1773329447978,-250.0,0.00020529,2]
[408258989,1773329447987,-250.0,0.00020529,2]
[408258990,1773329447996,-174.61919141,0.00020529,2]
[408258991,1773329448008,-1000.0,0.00020529,2]
[408258992,1773329448018,-500.0,0.00020529,2]
[408258993,1773329448027,-500.0,0.00020529,2]
[408258994,1773329448036,-500.0,0.00020529,2]
[408258995,1773329448047,-500.0,0.00020529,2]
[408258996,1773329448056,-500.0,0.00020529,2]
[408258997,1773329448065,-500.0,0.00020529,2]
[408258998,1773329448075,-500.0,0.00020529,2]
[408258999,1773329448084,-500.0,0.00020529,2]
[408259000,1773329448093,-500.0,0.00020529,2]
[408259001,1773329448102,-500.0,0.00020529,2]
[408259002,1773329448111,-500.0,0.00020529,2]
[408259003,1773329448120,-500.0,0.00020529,2]
[408259004,1773329448129,-500.0,0.00020529,2]
[408259005,1773329448138,-500.0,0.00020529,2]
[408259006,1773329448147,-154.789257,0.00020529,2]
[408259007,1773329448157,-151.0,0.00020529,2]
[408259008,1773329448166,-316.850194,0.00020529,2]
[408259009,1773329448175,-316.850194,0.00020529,2]
[408259010,1773329448184,-316.850194,0.00020529,2]
[408259011,1773329448193,-316.850194,0.00020529,2]
[408259012,1773329448202,-151.0,0.00020529,2]
[408259013,1773329448211,-154.561058,0.00020529,2]
[408259014,1773329448221,-154.561058,0.00020529,2]
[408259015,1773329448230,-154.561058,0.00020529,2]
[408259016,1773329448239,-154.561058,0.00020529,2]
[408259017,1773329448248,-151.0,0.00020529,2]
[408259018,1773329448258,-172.827738,0.00020529,2]
[408259019,1773329448267,-172.827738,0.00020529,2]
[408259020,1773329448276,-172.827738,0.00020529,2]
[408259021,1773329448285,-172.827738,0.00020529,2]
[408259022,1773329448294,-151.0,0.00020529,2]
[408259023,1773329448302,-151.0,0.00020529,2]
[408259024,1773329448311,-194.179278,0.00020529,2]
[408259025,1773329448320,-194.179278,0.00020529,2]
[408259026,1773329448329,-194.179278,0.00020529,2]
[408259027,1773329448338,-194.179278,0.00020529,2]
[408259028,1773329448348,-151.0,0.00020529,2]
[408259029,1773329448357,-265.244161,0.00020529,2]
[408259030,1773329448366,-265.244161,0.00020529,2]
[408259031,1773329448375,-265.244161,0.00020529,2]
[408259032,1773329448384,-265.244161,0.00020529,2]
[408259033,1773329448394,-151.0,0.00020529,2]
[408259034,1773329448404,-151.0,0.00020529,2]
[408259035,1773329448415,-151.0,0.00020529,2]
[408259036,1773329448424,-158.06,0.00020548,2]
[408259037,1773329448434,-6325.57956855,0.00020584,2]
[408259038,1773329448444,-151.0,0.00020584,2]
[408259039,1773329448454,-1600.0,0.00020646,2]
[408259040,1773329448463,-577.0,0.00020646,2]
[408259041,1773329448473,-3095.0,0.00020647,2]
[408259042,1773329448482,-3103.0,0.00020647,2]
[408259043,1773329448491,-168.0,0.00020675,2]
[408259044,1773329448501,-543.0,0.00020685,2]
[408259045,1773329448511,-577.0,0.00020695,2]
[408259046,1773329448521,-15356.04,0.00020732,2]
[408259047,1773329448530,-2893.49,0.00020732,2]
[408259048,1773329448539,-250.0,0.0002074,3]
[408259049,1773329448549,-823.0,0.00020774,2]
[408259050,1773329448559,-159.0,0.00020779,120]
[408259051,1773329448569,-577.0,0.00020797,2]
[408259052,1773329448578,-168.0,0.00020846,2]
[408259053,1773329448588,-3292.0,0.00020855,2]
[408259054,1773329448598,-577.0,0.00020871,2]
[408259055,1773329448607,-168.0,0.00020887,2]
[408259056,1773329448616,-168.0,0.00020911,2]
[408259057,1773329448626,-2807.0,0.00020936,2]
[408259058,1773329448635,-211.0,0.00020936,2]
[408259059,1773329448645,-166.66,0.00020946,2]
[408259060,1773329448654,-1199.58128733,0.00021,2]
[408259061,1773329448663,-198.00086951,0.00021,2]
[408259062,1773329448673,-347.58727664,0.00021009,2]
[408259063,1773329448684,-256.84,0.00021047,2]
[408259064,1773329448693,-577.0,0.00021067,2]